{"text_format":"1","workbook":"xlsx","n_sheets":3,"sheets":["Vejledning","EBIT-margien dokumentation","Ark2"],"not_rendered":{"charts":0,"images":5,"macros":1,"external_links":0,"defined_names":0,"comments":0,"pivot_tables":0},"unopened":[],"bounds":{"document_bytes":16777216,"sheet_cells":100000,"rows_first":2000,"rows_last":500,"rows_between":2000,"halvings":0,"cell_chars":16384,"cell_head_chars":4096},"cells_cut":0,"cells_raw":0,"read":"whole","date_system":"1900"}

{"sheet":"Vejledning","index":0,"n_rows":2,"n_cols":2,"rows_kept":2,"cut":false,"hidden":false,"merged":[[1,1,1,9]]}
[]
[null,"CVR -Det Centrale Virksomhedsregister"]

{"sheet":"EBIT-margien dokumentation","index":1,"n_rows":19,"n_cols":7,"rows_kept":19,"cut":false,"hidden":false,"merged":[[1,4,1,5],[2,4,2,5],[3,4,3,5],[5,5,5,6]]}
[]
[null,"Link til CVR register.",null,null,"Omsætning.:   "]
[null,"Skema til dokumentation af EBIT-margien",null,null,"EBIT.:   "]
[null,"Gælder for regnskabsåret ..::",2022,null,"EBIT-margien.:   "]
[]
[]
[null,"Firma Navn","CVR nr.","Branchekode","Beskrivelse",{"$f":"G7-1","v":2019},{"$f":"C4-2","v":2020}]
[null,null,null,null,{"$f":"IFERROR(VLOOKUP(D8,'Ark2'!A:D,4,0),\"\")","v":""}]
[null,null,null,null,{"$f":"IFERROR(VLOOKUP(D9,'Ark2'!A:D,4,0),\"\")","v":""}]
[null,null,null,null,{"$f":"IFERROR(VLOOKUP(D10,'Ark2'!A:D,4,0),\"\")","v":""}]
[null,null,null,null,{"$f":"IFERROR(VLOOKUP(D11,'Ark2'!A:D,4,0),\"\")","v":""}]
[null,null,null,null,{"$f":"IFERROR(VLOOKUP(D12,'Ark2'!A:D,4,0),\"\")","v":""}]
[null,null,null,null,{"$f":"IFERROR(VLOOKUP(D13,'Ark2'!A:D,4,0),\"\")","v":""}]
[null,null,null,null,{"$f":"IFERROR(VLOOKUP(D14,'Ark2'!A:D,4,0),\"\")","v":""}]
[null,null,null,null,{"$f":"IFERROR(VLOOKUP(D15,'Ark2'!A:D,4,0),\"\")","v":""}]
[null,null,null,null,{"$f":"IFERROR(VLOOKUP(D16,'Ark2'!A:D,4,0),\"\")","v":""}]
[null,null,null,null,{"$f":"IFERROR(VLOOKUP(D17,'Ark2'!A:D,4,0),\"\")","v":""}]
[]
[null,null,null,null,{"$f":" \"EBIT-margin for regnskabsåret \" & C4 & \" ..:\"","v":"EBIT-margin for regnskabsåret 2022 ..:"},null,{"$f":"IFERROR(MEDIAN(F8:G17),\"\")","v":""}]

{"sheet":"Ark2","index":2,"n_rows":742,"n_cols":4,"rows_kept":742,"cut":false,"hidden":true,"merged":[]}
["NR.","Branche kode","DB07","DB07 titel"]
[11100,{"$f":"LEFT(C2,2) & LEFT(RIGHT(C2,5),2) & RIGHT(C2,2)","v":"011100"},"01.11.00","Dyrkning af korn (undtagen ris), bælgfrugter og olieholdige frø"]
[11200,"011200","01.12.00","Dyrkning af ris"]
[11300,"011300","01.13.00","Dyrkning af grøntsager og meloner, rødder og rodknolde"]
[11400,"011400","01.14.00","Dyrkning af sukkerrør"]
[11500,"011500","01.15.00","Dyrkning af tobak"]
[11600,"011600","01.16.00","Dyrkning af tekstilplanter"]
[11900,"011900","01.19.00","Dyrkning af andre etårige afgrøder"]
[12100,"012100","01.21.00","Dyrkning af druer"]
[12200,"012200","01.22.00","Dyrkning af tropiske og subtropiske frugter"]
[12300,"012300","01.23.00","Dyrkning af citrusfrugter"]
[12400,"012400","01.24.00","Dyrkning af kernefrugter og stenfrugter"]
[12500,"012500","01.25.00","Dyrkning af andre træfrugter, bær og nødder"]
[12600,"012600","01.26.00","Dyrkning af olieholdige frugter"]
[12700,"012700","01.27.00","Dyrkning af planter til fremstilling af drikkevarer"]
[12800,"012800","01.28.00","Dyrkning af krydderiplanter, aromaplanter og lægeplanter"]
[12900,"012900","01.29.00","Dyrkning af andre flerårige afgrøder"]
[13000,"013000","01.30.00","Planteformering"]
[14100,"014100","01.41.00","Avl af malkekvæg"]
[14200,"014200","01.42.00","Avl af andet kvæg og bøfler"]
[14300,"014300","01.43.00","Avl af heste og dyr af hestefamilien"]
[14400,"014400","01.44.00","Avl af kameler og dyr af kamelfamilien"]
[14500,"014500","01.45.00","Avl af får og geder"]
[14610,"014610","01.46.10","Avl af smågrise"]
[14620,"014620","01.46.20","Produktion af slagtesvin"]
[14700,"014700","01.47.00","Fjerkræavl"]
[14910,"014910","01.49.10","Kenneler"]
[14920,"014920","01.49.20","Avl af pelsdyr mv."]
[15000,"015000","01.50.00","Blandet drift"]
[16100,"016100","01.61.00","Serviceydelser i forbindelse med planteavl"]
[16200,"016200","01.62.00","Serviceydelser i forbindelse med husdyravl"]
[16300,"016300","01.63.00","Forarbejdning af afgrøder efter høst"]
[16400,"016400","01.64.00","Forarbejdning af frø/sædekorn til udsæd"]
[17000,"017000","01.70.00","Jagt, fældefangst og serviceydelser i forbindelse hermed"]
[21000,"021000","02.10.00","Dyrkning af træer og andre skovbrugsaktiviteter"]
[22000,"022000","02.20.00","Skovning"]
[23000,"023000","02.30.00","Indsamling af vildtvoksende forstmateriale undtagen træer"]
[24000,"024000","02.40.00","Serviceydelser til skovbrug"]
[31100,"031100","03.11.00","Havfiskeri"]
[31200,"031200","03.12.00","Ferskvandsfiskeri"]
[32100,"032100","03.21.00","Havbrug"]
[32200,"032200","03.22.00","Ferskvandsbrug"]
[51000,"051000","05.10.00","Indvinding af stenkul"]
[52000,"052000","05.20.00","Indvinding af brunkul"]
[61000,"061000","06.10.00","Indvinding af råolie"]
[62000,"062000","06.20.00","Indvinding af naturgas"]
[71000,"071000","07.10.00","Brydning af jernmalm"]
[72100,"072100","07.21.00","Brydning af uran- og thoriummalme"]
[72900,"072900","07.29.00","Brydning af andre ikke-jernholdige metalmalme"]
[81100,"081100","08.11.00","Brydning af pynte- og bygningssten, kalksten, gips, kridt og skifer"]
[81200,"081200","08.12.00","Grus- og sandgravning; indvinding af ler og kaolin"]
[89100,"089100","08.91.00","Indvinding af mineraler til fremstilling af kemiske produkter og gødningsstoffer"]
[89200,"089200","08.92.00","Indvinding og agglomerering af tørv"]
[89300,"089300","08.93.00","Saltindvinding"]
[89900,"089900","08.99.00","Anden råstofindvinding i.a.n."]
[91000,"091000","09.10.00","Serviceydelser i forbindelse med indvinding af råolie og naturgas"]
[99000,"099000","09.90.00","Serviceydelser i forbindelse med anden råstofindvinding"]
[101110,"101110","10.11.10","Forarbejdning af svinekød"]
[101190,"101190","10.11.90","Forarbejdning af andet kød"]
[101200,"101200","10.12.00","Forarbejdning og konservering af fjerkrækød"]
[101300,"101300","10.13.00","Produktion af kød- og fjerkrækødprodukter"]
[102010,"102010","10.20.10","Fremstilling af fiskemel"]
[102020,"102020","10.20.20","Forarbejdning og konservering af fisk, krebsdyr og bløddyr, undtagen fiskemel"]
[103100,"103100","10.31.00","Forarbejdning og konservering af kartofler"]
[103200,"103200","10.32.00","Fremstilling af frugt- og grøntsagssaft"]
[103900,{"$f":"LEFT(C66,2) & LEFT(RIGHT(C66,5),2) & RIGHT(C66,2)","v":"103900"},"10.39.00","Anden forarbejdning og konservering af frugt og grøntsager"]
[104100,"104100","10.41.00","Fremstilling af olier og fedtstoffer"]
[104200,"104200","10.42.00","Fremstilling af margarine o.l. spiselige fedtstoffer"]
[105100,"105100","10.51.00","Mejerier samt ostefremstilling"]
[105200,"105200","10.52.00","Fremstilling af konsumis"]
[106100,"106100","10.61.00","Fremstilling af mølleriprodukter"]
[106200,"106200","10.62.00","Fremstilling af stivelse og stivelsesprodukter"]
[107110,"107110","10.71.10","Industriel fremstilling af brød; kager mv."]
[107120,"107120","10.71.20","Fremstilling af friske bageriprodukter"]
[107200,"107200","10.72.00","Fremstilling af tvebakker og kiks; fremstilling af konserverede kager, tærter mv."]
[107300,"107300","10.73.00","Fremstilling af makaroni, nudler, couscous og lignende dejvarer"]
[108100,"108100","10.81.00","Fremstilling af sukker"]
[108200,"108200","10.82.00","Fremstilling af kakao, chokolade og sukkervarer"]
[108300,"108300","10.83.00","Forarbejdning af te og kaffe"]
[108400,"108400","10.84.00","Fremstilling af smagspræparater og krydderier"]
[108500,"108500","10.85.00","Fremstilling af færdigretter"]
[108600,"108600","10.86.00","Fremstilling af homogeniserede produkter og diætmad"]
[108900,"108900","10.89.00","Fremstilling af andre fødevarer i.a.n."]
[109100,"109100","10.91.00","Fremstilling af færdige foderblandinger til landbrugsdyr"]
[109200,"109200","10.92.00","Fremstilling af færdige foderblandinger til kæledyr"]
[110100,"110100","11.01.00","Destillation, rektifikation og blanding af alkohol"]
[110200,"110200","11.02.00","Fremstilling af vin af druer"]
[110300,"110300","11.03.00","Fremstilling af cider og anden frugtvin"]
[110400,"110400","11.04.00","Fremstilling af andre ikke-destillerede gærede drikkevarer"]
[110500,"110500","11.05.00","Fremstilling af øl"]
[110600,"110600","11.06.00","Fremstilling af malt"]
[110700,"110700","11.07.00","Fremstilling af læskedrikke; fremstilling af mineralvand og andet vand på flaske"]
[120000,"120000","12.00.00","Fremstilling af tobaksprodukter"]
[131000,"131000","13.10.00","Forbehandling og spinding af tekstilfibre"]
[132000,"132000","13.20.00","Vævning af tekstiler"]
[133000,"133000","13.30.00","Efterbehandling af tekstiler"]
[139100,"139100","13.91.00","Fremstilling af trikotagestoffer"]
[139210,"139210","13.92.10","Fremstilling af boligtekstiler"]
[139220,"139220","13.92.20","Fremstilling af færdige tekstilvarer undtagen boligtekstiler og beklædningsartikler"]
[139300,"139300","13.93.00","Fremstilling af tæpper"]
[139400,"139400","13.94.00","Fremstilling af reb, tovværk, sejlgarn og netstoffer"]
[139500,"139500","13.95.00","Fremstilling af fiberdug og varer af fiberdug undtagen beklædningsartikler"]
[139600,"139600","13.96.00","Fremstilling af andre tekniske og industrielle tekstiler"]
[139900,"139900","13.99.00","Fremstilling af andre tekstiler i.a.n."]
[141100,"141100","14.11.00","Fremstilling af beklædningsartikler af læder"]
[141200,"141200","14.12.00","Fremstilling af arbejdsbeklædning"]
[141300,"141300","14.13.00","Fremstilling af anden yderbeklædning"]
[141400,"141400","14.14.00","Fremstilling af underbeklædning"]
[141900,"141900","14.19.00","Fremstilling af andre beklædningsartikler samt tilbehør"]
[142000,"142000","14.20.00","Fremstilling af varer af pelsskind"]
[143100,"143100","14.31.00","Fremstilling af strikkede og hæklede strømpevarer"]
[143900,"143900","14.39.00","Fremstilling af andre strikkede og hæklede beklædningsartikler"]
[151100,"151100","15.11.00","Garvning og beredning af læder; beredning og farvning af pelsskind"]
[151200,"151200","15.12.00","Fremstilling af tasker, kufferter, sadelmagervarer mv."]
[152000,"152000","15.20.00","Fremstilling af fodtøj"]
[161000,"161000","16.10.00","Udsavning og høvling af træ"]
[162100,"162100","16.21.00","Fremstilling af finerplader og træbaserede plader"]
[162200,"162200","16.22.00","Fremstilling af sammensatte parketstave"]
[162300,"162300","16.23.00","Fremstilling af bygningstømmer og snedkeriartikler i øvrigt"]
[162400,"162400","16.24.00","Fremstilling af træemballage"]
[162900,"162900","16.29.00","Fremstilling af andre træprodukter; fremstilling af varer af kork, strå og flettematerialer"]
[171100,"171100","17.11.00","Fremstilling af papirmasse"]
[171200,"171200","17.12.00","Fremstilling af papir og pap"]
[172100,"172100","17.21.00","Fremstilling af bølgepap og pap og emballage af papir og pap"]
[172200,"172200","17.22.00","Fremstilling af husholdningsartikler og hygiejneartikler samt toiletartikler af papir og pap"]
[172300,"172300","17.23.00","Fremstilling af kontorartikler af papir"]
[172400,"172400","17.24.00","Fremstilling af tapet"]
[172900,"172900","17.29.00","Fremstilling af andre papir- og papvarer"]
[181100,"181100","18.11.00","Trykning af dagblade"]
[181200,{"$f":"LEFT(C130,2) & LEFT(RIGHT(C130,5),2) & RIGHT(C130,2)","v":"181200"},"18.12.00","Anden trykning"]
[181300,"181300","18.13.00","Prepress- og premedia-arbejde"]
[181400,"181400","18.14.00","Bogbinding og lignende serviceydelser"]
[182000,"182000","18.20.00","Reproduktion af indspillede medier"]
[191000,"191000","19.10.00","Fremstilling af koks mv."]
[192000,"192000","19.20.00","Fremstilling af raffinerede mineralolieprodukter"]
[201100,"201100","20.11.00","Fremstilling af industrigasser"]
[201200,"201200","20.12.00","Fremstilling af farvestoffer og pigmenter"]
[201300,"201300","20.13.00","Fremstilling af andre uorganiske basiskemikalier"]
[201400,"201400","20.14.00","Fremstilling af andre organiske basiskemikalier"]
[201500,"201500","20.15.00","Fremstilling af gødningsstoffer og nitrogenprodukter"]
[201600,"201600","20.16.00","Fremstilling af plast i ubearbejdet form"]
[201700,"201700","20.17.00","Fremstilling af syntetisk gummi i ubearbejdet form"]
[202000,"202000","20.20.00","Fremstilling af pesticider og andre agrokemiske produkter"]
[203000,"203000","20.30.00","Fremstilling af maling, lak og lignende overfladebehandlingsmidler, trykfarver samt tætningsmaterialer"]
[204100,"204100","20.41.00","Fremstilling af sæbe, rengørings- og rensemidler samt poleremidler"]
[204200,"204200","20.42.00","Fremstilling af parfume, hårshampoo, tandpasta mv."]
[205100,"205100","20.51.00","Fremstilling af sprængstoffer"]
[205200,"205200","20.52.00","Fremstilling af lim"]
[205300,"205300","20.53.00","Fremstilling af æteriske olier"]
[205900,"205900","20.59.00","Fremstilling af andre kemiske produkter i.a.n."]
[206000,"206000","20.60.00","Fremstilling af kemofibre"]
[211000,"211000","21.10.00","Fremstilling af farmaceutiske råvarer"]
[212000,"212000","21.20.00","Fremstilling af farmaceutiske præparater"]
[221100,"221100","22.11.00","Fremstilling af gummidæk og gummislanger; vulkanisering af dæk"]
[221900,"221900","22.19.00","Fremstilling af andre gummiprodukter"]
[222100,"222100","22.21.00","Fremstilling af plader, ark, rør og slanger samt profiler af plast"]
[222200,"222200","22.22.00","Fremstilling af plastemballage"]
[222300,"222300","22.23.00","Fremstilling af bygningsartikler af plast"]
[222900,"222900","22.29.00","Fremstilling af andre plastprodukter"]
[231100,"231100","23.11.00","Fremstilling af planglas"]
[231200,"231200","23.12.00","Formning og forarbejdning af planglas"]
[231300,"231300","23.13.00","Fremstilling af flasker, drikkeglas mv."]
[231400,"231400","23.14.00","Fremstilling af glasfiber"]
[231900,"231900","23.19.00","Fremstilling og bearbejdning af andet glas (herunder teknisk glas)"]
[232000,"232000","23.20.00","Fremstilling af ildfaste produkter"]
[233100,"233100","23.31.00","Fremstilling af keramiske teglsten og gulvfliser"]
[233200,"233200","23.32.00","Fremstilling af mursten, teglsten og byggematerialer af brændt ler"]
[234100,"234100","23.41.00","Fremstilling af keramiske husholdningsartikler og pyntegenstande"]
[234200,"234200","23.42.00","Fremstilling af keramiske sanitetsartikler"]
[234300,"234300","23.43.00","Fremstilling af keramiske isolatorer og isoleringsdele"]
[234400,"234400","23.44.00","Fremstilling af andre keramiske produkter til teknisk brug"]
[234900,"234900","23.49.00","Fremstilling af andre keramiske produkter"]
[235100,"235100","23.51.00","Fremstilling af cement"]
[235200,"235200","23.52.00","Fremstilling af kalk og gips"]
[236100,"236100","23.61.00","Fremstilling af byggematerialer af beton"]
[236200,"236200","23.62.00","Fremstilling af byggematerialer af gips"]
[236300,"236300","23.63.00","Fremstilling af færdigblandet beton"]
[236400,"236400","23.64.00","Fremstilling af mørtel"]
[236500,"236500","23.65.00","Fremstilling af fibercement"]
[236900,"236900","23.69.00","Fremstilling af andre beton-, gips- og cementprodukter"]
[237000,"237000","23.70.00","Tilhugning, tilskæring og færdigbearbejdning af sten"]
[239100,"239100","23.91.00","Fremstilling af slibemidler"]
[239910,"239910","23.99.10","Fremstilling af asfalt og tagpap"]
[239990,"239990","23.99.90","Fremstilling af andre ikke-metalholdige mineralske produkter i.a.n."]
[241000,"241000","24.10.00","Fremstilling af råjern og råstål samt jernlegeringer"]
[242000,"242000","24.20.00","Fremstilling af rør og hule profiler og tilhørende fittings af stål"]
[243100,"243100","24.31.00","Fremstilling af stænger ved koldtrækning"]
[243200,"243200","24.32.00","Fremstilling af stålbånd ved koldvalsning"]
[243300,"243300","24.33.00","Koldbehandling"]
[243400,"243400","24.34.00","Fremstilling af tråd ved koldtrækning"]
[244100,"244100","24.41.00","Fremstilling af ædelmetaller"]
[244200,"244200","24.42.00","Fremstilling af aluminium"]
[244300,"244300","24.43.00","Fremstilling af bly, zink og tin"]
[244400,{"$f":"LEFT(C194,2) & LEFT(RIGHT(C194,5),2) & RIGHT(C194,2)","v":"244400"},"24.44.00","Fremstilling af kobber"]
[244500,"244500","24.45.00","Anden fremstilling af ikke-jernholdige metaller"]
[244600,"244600","24.46.00","Oparbejdning af nukleart brændsel"]
[245100,"245100","24.51.00","Støbning af jernprodukter"]
[245200,"245200","24.52.00","Støbning af stålprodukter"]
[245300,"245300","24.53.00","Støbning af letmetalprodukter"]
[245400,"245400","24.54.00","Støbning af andre ikke-jernholdige metalprodukter"]
[251100,"251100","25.11.00","Fremstilling af metalkonstruktioner og dele heraf"]
[251200,"251200","25.12.00","Fremstilling af døre og vinduer af metal"]
[252100,"252100","25.21.00","Fremstilling af radiatorer og kedler til centralvarmeanlæg"]
[252900,"252900","25.29.00","Fremstilling af andre tanke og beholdere af metal"]
[253000,"253000","25.30.00","Fremstilling af dampkedler undtagen centralvarmekedler"]
[254000,"254000","25.40.00","Fremstilling af våben og ammunition"]
[255000,"255000","25.50.00","Smedning, presning, sænksmedning og valsning af metal; pulvermetallurgi"]
[256100,"256100","25.61.00","Overfladebehandling af metal"]
[256200,"256200","25.62.00","Maskinforarbejdning"]
[257100,"257100","25.71.00","Fremstilling af bestik, skære- og klipperedskaber"]
[257200,"257200","25.72.00","Fremstilling af låse og hængsler"]
[257300,"257300","25.73.00","Fremstilling af håndværktøj"]
[259100,"259100","25.91.00","Fremstilling af metaltønder og lignende beholdere"]
[259200,"259200","25.92.00","Fremstilling af letmetalemballage"]
[259300,"259300","25.93.00","Fremstilling af trådvarer, kæder og fjedre"]
[259400,"259400","25.94.00","Fremstilling af lukkeanordninger, bolte, skruer og møtrikker"]
[259900,"259900","25.99.00","Fremstilling af andre færdige metalprodukter i.a.n."]
[261100,"261100","26.11.00","Fremstilling af elektroniske komponenter og plader"]
[261200,"261200","26.12.00","Fremstilling af printplader o.l."]
[262000,"262000","26.20.00","Fremstilling af computere og ydre enheder"]
[263000,"263000","26.30.00","Fremstilling af kommunikationsudstyr"]
[264000,"264000","26.40.00","Fremstilling af elektronik til husholdninger"]
[265100,"265100","26.51.00","Fremstilling af udstyr til måling, afprøvning, navigation og kontrol"]
[265200,"265200","26.52.00","Fremstilling af ure"]
[266010,"266010","26.60.10","Fremstilling af høreapparater og dele hertil"]
[266090,"266090","26.60.90","Fremstilling af bestrålingsudstyr og elektromedicinsk og elektroterapeutisk udstyr"]
[267000,"267000","26.70.00","Fremstilling af optiske instrumenter og fotografisk udstyr"]
[268000,"268000","26.80.00","Fremstilling af magnetiske og optiske media"]
[271100,"271100","27.11.00","Fremstilling af elektriske motorer, generatorer og transformere"]
[271200,"271200","27.12.00","Fremstilling af elektriske fordelings- og kontrolapparater"]
[272000,"272000","27.20.00","Fremstilling af batterier og akkumulatorer"]
[273100,"273100","27.31.00","Fremstilling af lyslederkabler"]
[273200,"273200","27.32.00","Fremstilling af andre elektroniske og elektriske ledninger og kabler"]
[273300,"273300","27.33.00","Fremstilling af tilbehør til ledninger og kabler"]
[274000,"274000","27.40.00","Fremstilling af elektriske belysningsartikler"]
[275100,"275100","27.51.00","Fremstilling af elektriske husholdningsapparater"]
[275200,"275200","27.52.00","Fremstilling af ikke-elektriske husholdningsapparater"]
[279000,"279000","27.90.00","Fremstilling af andet elektrisk udstyr"]
[281110,"281110","28.11.10","Fremstilling af vindmøller og dele hertil"]
[281190,"281190","28.11.90","Fremstilling af motorer og turbiner undtagen motorer til vindmøller, flyvemaskiner, motorkøretøjer og knallerter"]
[281200,"281200","28.12.00","Fremstilling af hydraulisk udstyr"]
[281300,"281300","28.13.00","Fremstilling af andre pumper og kompressorer"]
[281400,"281400","28.14.00","Fremstilling af andre haner og ventiler"]
[281500,"281500","28.15.00","Fremstilling af lejer, tandhjul, tandhjulsudvekslinger og drivelementer"]
[282100,"282100","28.21.00","Fremstilling af ovne, ildsteder og fyringsaggregater"]
[282200,"282200","28.22.00","Fremstilling af løfte- og håndteringsudstyr"]
[282300,"282300","28.23.00","Fremstilling af kontormaskiner og -udstyr (undtagen computere og ydre enheder)"]
[282400,"282400","28.24.00","Fremstilling af motordrevet håndværktøj"]
[282500,"282500","28.25.00","Fremstilling af køle- og ventilationsanlæg (til industriel brug)"]
[282900,"282900","28.29.00","Fremstilling af andre maskiner til generelle formål i.a.n."]
[283000,"283000","28.30.00","Fremstilling af landbrugs- og skovbrugsmaskiner"]
[284100,"284100","28.41.00","Fremstilling af metalforarbejdende værktøjsmaskiner"]
[284900,"284900","28.49.00","Fremstilling af andre værktøjsmaskiner"]
[289100,"289100","28.91.00","Fremstilling af maskiner til metallurgi"]
[289200,"289200","28.92.00","Fremstilling af maskiner til råstofindvindingsindustrien samt bygge og anlæg"]
[289300,"289300","28.93.00","Fremstilling af maskiner til føde-, drikke- og tobaksvareindustrien"]
[289400,"289400","28.94.00","Fremstilling af maskiner til produktion af tekstiler, beklædningsartikler og læder"]
[289500,{"$f":"LEFT(C258,2) & LEFT(RIGHT(C258,5),2) & RIGHT(C258,2)","v":"289500"},"28.95.00","Fremstilling af maskiner til produktion af papir og pap"]
[289600,"289600","28.96.00","Fremstilling af maskiner til produktion af plast og gummi"]
[289900,"289900","28.99.00","Fremstilling af øvrige maskiner til specielle formål i.a.n."]
[291000,"291000","29.10.00","Fremstilling af motorkøretøjer"]
[292000,"292000","29.20.00","Fremstilling af karosserier til motorkøretøjer; fremstilling af påhængsvogne og sættevogne"]
[293100,"293100","29.31.00","Fremstilling af elektrisk og elektronisk udstyr til motorkøretøjer"]
[293200,"293200","29.32.00","Fremstilling af andre dele og tilbehør til motorkøretøjer"]
[301100,"301100","30.11.00","Bygning af skibe og flydende materiel"]
[301200,"301200","30.12.00","Bygning af både til fritid og sport"]
[302000,"302000","30.20.00","Fremstilling af lokomotiver og andet rullende materiel til jernbaner og sporveje"]
[303000,"303000","30.30.00","Fremstilling af luft- og rumfartøjer o.l."]
[304000,"304000","30.40.00","Fremstilling af militære kampkøretøjer"]
[309100,"309100","30.91.00","Fremstilling af motorcykler"]
[309200,"309200","30.92.00","Fremstilling af cykler og invalidekøretøjer"]
[309900,"309900","30.99.00","Fremstilling af andre transportmidler i.a.n."]
[310100,"310100","31.01.00","Fremstilling af kontor- og butiksmøbler"]
[310200,"310200","31.02.00","Fremstilling af køkkenmøbler"]
[310300,"310300","31.03.00","Fremstilling af madrasser"]
[310900,"310900","31.09.00","Fremstilling af andre møbler"]
[321100,"321100","32.11.00","Prægning af mønter"]
[321200,"321200","32.12.00","Fremstilling af smykker i ædle metaller og relaterede produkter"]
[321300,"321300","32.13.00","Fremstilling af bijouteri og lignende varer"]
[322000,"322000","32.20.00","Fremstilling af musikinstrumenter"]
[323000,"323000","32.30.00","Fremstilling af sportsudstyr"]
[324000,"324000","32.40.00","Fremstilling af spil og legetøj"]
[325000,"325000","32.50.00","Fremstilling af medicinske og dentale instrumenter samt udstyr hertil”"]
[329100,"329100","32.91.00","Fremstilling af koste og børster"]
[329900,"329900","32.99.00","Anden fremstillingsvirksomhed i.a.n."]
[331100,"331100","33.11.00","Reparation af jern- og metalvarer"]
[331200,"331200","33.12.00","Reparation af maskiner"]
[331300,"331300","33.13.00","Reparation af elektronisk og optisk udstyr"]
[331400,"331400","33.14.00","Reparation af elektrisk udstyr"]
[331500,"331500","33.15.00","Reparation og vedligeholdelse af skibe og både"]
[331600,"331600","33.16.00","Reparation og vedligeholdelse af luft- og rumfartøjer"]
[331700,"331700","33.17.00","Reparation og vedligeholdelse af andre transportmidler"]
[331900,"331900","33.19.00","Reparation af andet udstyr"]
[332000,"332000","33.20.00","Installation af industrimaskiner og -udstyr"]
[351100,"351100","35.11.00","Produktion af elektricitet"]
[351200,"351200","35.12.00","Transmission af elektricitet"]
[351300,"351300","35.13.00","Distribution af elektricitet"]
[351400,"351400","35.14.00","Handel med elektricitet"]
[352100,"352100","35.21.00","Fremstilling af gas"]
[352200,"352200","35.22.00","Distribution af gas"]
[352300,"352300","35.23.00","Handel med gas gennem rørledninger"]
[353000,"353000","35.30.00","Varmeforsyning"]
[360000,"360000","36.00.00","Vandforsyning"]
[370000,"370000","37.00.00","Opsamling og behandling af spildevand"]
[381100,"381100","38.11.00","Indsamling af ikke-farligt affald"]
[381200,"381200","38.12.00","Indsamling af farligt affald"]
[382110,"382110","38.21.10","Behandling og bortskaffelse af ikke-farligt affald"]
[382120,"382120","38.21.20","Bortskaffelse af affald med energiproduktion"]
[382200,"382200","38.22.00","Behandling og bortskaffelse af farligt affald"]
[383100,"383100","38.31.00","Demontering af udtjente køretøjer, skibe, maskiner mv."]
[383200,"383200","38.32.00","Genbrug af sorterede materialer"]
[390000,"390000","39.00.00","Rensning af jord og grundvand og anden form for forureningsbekæmpelse"]
[411000,"411000","41.10.00","Gennemførelse af byggeprojekter"]
[412000,"412000","41.20.00","Opførelse af bygninger"]
[421000,"421000","42.10.00","Anlæg af veje og jernbaner"]
[422000,"422000","42.20.00","Anlæg af ledningsnet"]
[429000,"429000","42.90.00","Anden anlægsvirksomhed"]
[421100,"421100","42.11.00","Anlæg af veje og motorveje"]
[421200,"421200","42.12.00","Anlæg af jernbaner og undergrundsbaner"]
[421300,"421300","42.13.00","Anlæg af broer og tunneller"]
[422100,"422100","42.21.00","Anlæg af ledningsnet til væsker"]
[422200,{"$f":"LEFT(C322,2) & LEFT(RIGHT(C322,5),2) & RIGHT(C322,2)","v":"422200"},"42.22.00","Anlæg af ledningsnet til elektricitet og kommunikation"]
[429100,"429100","42.91.00","Anlæg af vandveje, havne, diger og dæmninger"]
[429900,"429900","42.99.00","Anden anlægsvirksomhed i.a.n."]
[431100,"431100","43.11.00","Nedrivning"]
[431200,"431200","43.12.00","Forberedende byggepladsarbejder"]
[431300,"431300","43.13.00","Funderingsundersøgelser"]
[432100,"432100","43.21.00","El-installation"]
[432200,"432200","43.22.00","VVS- og blikkenslagerforretninger"]
[432900,"432900","43.29.00","Anden bygningsinstallationsvirksomhed"]
[433100,"433100","43.31.00","Stukkatørvirksomhed"]
[433200,"433200","43.32.00","Tømrer- og bygningssnedkervirksomhed"]
[433300,"433300","43.33.00","Udførelse af gulvbelægninger og vægbeklædning"]
[433410,"433410","43.34.10","Malerforretninger"]
[433420,"433420","43.34.20","Glarmestervirksomhed"]
[433900,"433900","43.39.00","Anden bygningsfærdiggørelse"]
[439100,"439100","43.91.00","Tagdækningsvirksomhed"]
[439910,"439910","43.99.10","Murere"]
[439990,"439990","43.99.90","Anden bygge- og anlægsvirksomhed, som kræver specialisering"]
[451110,"451110","45.11.10","Engroshandel med personbiler, varebiler og minibusser"]
[451120,"451120","45.11.20","Detailhandel med personbiler, varebiler og minibusser"]
[451910,"451910","45.19.10","Engros- og detailhandel med campingkøretøjer, små trailere mv."]
[451920,"451920","45.19.20","Engros- og detailhandel med lastbiler og påhængsvogne mv."]
[452010,"452010","45.20.10","Autoreparationsværksteder mv."]
[452020,"452020","45.20.20","Karosseriværksteder og autolakererier"]
[452030,"452030","45.20.30","Undervognsbehandling"]
[452040,"452040","45.20.40","Dækservice"]
[453100,"453100","45.31.00","Engroshandel med reservedele og tilbehør til motorkøretøjer"]
[453200,"453200","45.32.00","Detailhandel med reservedele og tilbehør til motorkøretøjer"]
[454000,"454000","45.40.00","Salg, vedligeholdelse og reparation af motorcykler og reservedele og tilbehør hertil"]
[461100,"461100","46.11.00","Agenturhandel med landbrugsråvarer, levende dyr, tekstilmaterialer og halvfabrikata"]
[461200,"461200","46.12.00","Agenturhandel med brændstoffer, malme, metaller og kemiske produkter til industrien"]
[461300,"461300","46.13.00","Agenturhandel med tømmer og andre byggematerialer"]
[461400,"461400","46.14.00","Agenturhandel med maskiner, teknisk udstyr, skibe og flyvemaskiner"]
[461500,"461500","46.15.00","Agenturhandel med møbler, husholdningsartikler og isenkram"]
[461600,"461600","46.16.00","Agenturhandel med tekstiler, beklædning, pelsværk, fodtøj og lædervarer"]
[461710,"461710","46.17.10","Fiskeauktioner"]
[461790,"461790","46.17.90","Anden agenturhandel med føde-, drikke- og tobaksvarer"]
[461800,"461800","46.18.00","Agenturhandel med specialiseret varesortiment i.a.n."]
[461900,"461900","46.19.00","Agenturhandel med blandet sortiment"]
[462100,"462100","46.21.00","Engroshandel med korn, uforarbejdet tobak, såsæd og foderstoffer"]
[462200,"462200","46.22.00","Engroshandel med blomster og planter"]
[462300,"462300","46.23.00","Engroshandel med levende dyr"]
[462400,"462400","46.24.00","Engroshandel med huder, skind og læder"]
[463100,"463100","46.31.00","Engroshandel med frugt og grøntsager"]
[463200,"463200","46.32.00","Engroshandel med kød og kødprodukter"]
[463300,"463300","46.33.00","Engroshandel med mejeriprodukter, æg samt spiselige olier og fedtstoffer"]
[463410,"463410","46.34.10","Engroshandel med øl, mineralvand, frugt- og grøntsagssaft"]
[463420,"463420","46.34.20","Engroshandel med vin og spiritus"]
[463500,"463500","46.35.00","Engroshandel med tobaksvarer"]
[463600,"463600","46.36.00","Engroshandel med sukker, chokolade og sukkervarer"]
[463700,"463700","46.37.00","Engroshandel med kaffe, te, kakao og krydderier"]
[463810,"463810","46.38.10","Engroshandel med fisk og fiskeprodukter"]
[463890,"463890","46.38.90","Specialiseret engroshandel med fødevarer i.a.n."]
[463900,"463900","46.39.00","Ikke-specialiseret engroshandel med føde-, drikke- og tobaksvarer"]
[464100,"464100","46.41.00","Engroshandel med tekstiler"]
[464210,"464210","46.42.10","Engroshandel med beklædning"]
[464220,"464220","46.42.20","Engroshandel med fodtøj"]
[464310,"464310","46.43.10","Engroshandel med hårde hvidevarer"]
[464320,"464320","46.43.20","Engroshandel med radio og tv mv."]
[464330,"464330","46.43.30","Engroshandel med indspillede videoer, cd'er, dvd'er mv."]
[464340,"464340","46.43.40","Engroshandel med fotografiske og optiske artikler"]
[464350,"464350","46.43.50","Engroshandel med elektriske husholdningsartikler"]
[464410,"464410","46.44.10","Engroshandel med porcelæns- og glasvarer"]
[464420,"464420","46.44.20","Engroshandel med rengøringsmidler"]
[464500,{"$f":"LEFT(C386,2) & LEFT(RIGHT(C386,5),2) & RIGHT(C386,2)","v":"464500"},"46.45.00","Engroshandel med parfumerivarer og kosmetik"]
[464610,"464610","46.46.10","Engroshandel med medicinalvarer og sygeplejeartikler"]
[464620,"464620","46.46.20","Engroshandel med læge- og hospitalsartikler"]
[464700,"464700","46.47.00","Engroshandel med møbler, tæpper og belysningsartikler"]
[464800,"464800","46.48.00","Engroshandel med ure, smykker og guld- og sølvvarer"]
[464910,"464910","46.49.10","Engroshandel med cykler, sportsartikler og lystbåde"]
[464920,"464920","46.49.20","Engroshandel med bøger, papir og papirvarer"]
[464930,"464930","46.49.30","Engroshandel med kufferter og lædervarer"]
[464990,"464990","46.49.90","Engroshandel med andre husholdningsartikler"]
[465100,"465100","46.51.00","Engroshandel med computere, ydre enheder og software"]
[465210,"465210","46.52.10","Engroshandel med elektronisk udstyr"]
[465220,"465220","46.52.20","Engroshandel med telekommunikationsudstyr"]
[466100,"466100","46.61.00","Engroshandel med landbrugsmaskiner, -udstyr og tilbehør hertil"]
[466200,"466200","46.62.00","Engroshandel med værktøjsmaskiner"]
[466300,"466300","46.63.00","Engroshandel med maskiner til minedrift og bygge- og anlægsvirksomhed"]
[466400,"466400","46.64.00","Engroshandel med maskiner, udstyr og tilbehør til tekstilindustrien"]
[466500,"466500","46.65.00","Engroshandel med kontormøbler"]
[466600,"466600","46.66.00","Engroshandel med andre kontormaskiner og andet kontorudstyr"]
[466900,"466900","46.69.00","Engroshandel med andre maskiner og andet udstyr"]
[467100,"467100","46.71.00","Engroshandel med fast, flydende og luftformigt brændstof og lignende varer"]
[467200,"467200","46.72.00","Engroshandel med metaller og metalmalme"]
[467310,"467310","46.73.10","Engroshandel med træ, trælast og byggematerialer"]
[467320,"467320","46.73.20","Engroshandel med lak, maling, tapet, gulvbelægning mv."]
[467400,"467400","46.74.00","Engroshandel med isenkram, varmeanlæg og tilbehør"]
[467500,"467500","46.75.00","Engroshandel med kemiske produkter"]
[467600,"467600","46.76.00","Engroshandel med andre råvarer og halvfabrikata"]
[467700,"467700","46.77.00","Engroshandel med affaldsprodukter"]
[469000,"469000","46.90.00","Ikke-specialiseret engroshandel"]
[471110,"471110","47.11.10","Købmænd og døgnkiosker"]
[471120,"471120","47.11.20","Supermarkeder"]
[471130,"471130","47.11.30","Discountforretninger"]
[471900,"471900","47.19.00","Anden detailhandel fra ikke-specialiserede forretninger"]
[472100,"472100","47.21.00","Frugt- og grøntforretninger"]
[472200,"472200","47.22.00","Slagter- og viktualieforretninger"]
[472300,"472300","47.23.00","Fiskeforretninger"]
[472400,"472400","47.24.00","Detailhandel med brød, konditori- og sukkervarer"]
[472500,"472500","47.25.00","Detailhandel med drikkevarer"]
[472600,"472600","47.26.00","Tobaksforretninger"]
[472900,"472900","47.29.00","Anden detailhandel med fødevarer i specialforretninger"]
[473000,"473000","47.30.00","Servicestationer"]
[474100,"474100","47.41.00","Detailhandel med computere, ydre enheder og software"]
[474200,"474200","47.42.00","Detailhandel med telekommunikationsudstyr"]
[474300,"474300","47.43.00","Radio- og tv-forretninger"]
[475100,"475100","47.51.00","Detailhandel med kjolestoffer, garn, broderier mv."]
[475210,"475210","47.52.10","Farve- og tapetforretninger"]
[475220,"475220","47.52.20","Byggemarkeder og værktøjsmagasiner"]
[475300,"475300","47.53.00","Detailhandel med tæpper, vægbeklædning og gulvbelægning"]
[475400,"475400","47.54.00","Detailhandel med elektriske husholdningsapparater"]
[475910,"475910","47.59.10","Møbelforretninger"]
[475920,"475920","47.59.20","Boligtekstilforretninger"]
[475930,"475930","47.59.30","Detailhandel med køkkenudstyr, glas, porcelæn, bestik, vaser, lysestager mv."]
[475940,"475940","47.59.40","Forhandlere af musikinstrumenter"]
[475990,"475990","47.59.90","Detailhandel med belysningsartikler samt husholdningsartikler i.a.n.”"]
[476100,"476100","47.61.00","Detailhandel med bøger"]
[476200,"476200","47.62.00","Detailhandel med aviser og papirvarer"]
[476300,"476300","47.63.00","Detailhandel med musik- og videooptagelser"]
[476410,"476410","47.64.10","Forhandlere af sports- og campingudstyr"]
[476420,"476420","47.64.20","Cykel- og knallertforretninger"]
[476430,"476430","47.64.30","Forhandlere af lystbåde og udstyr hertil"]
[476500,"476500","47.65.00","Detailhandel med spil og legetøj"]
[477110,"477110","47.71.10","Tøjforretninger"]
[477120,"477120","47.71.20","Babyudstyrs- og børnetøjsforretninger"]
[477210,"477210","47.72.10","Skotøjsforretninger"]
[477220,"477220","47.72.20","Lædervareforretninger"]
[477300,{"$f":"LEFT(C450,2) & LEFT(RIGHT(C450,5),2) & RIGHT(C450,2)","v":"477300"},"47.73.00","Apoteker"]
[477400,"477400","47.74.00","Detailhandel med medicinske og ortopædiske artikler"]
[477500,"477500","47.75.00","Detailhandel med kosmetikvarer og produkter til personlig pleje"]
[477610,"477610","47.76.10","Blomsterforretninger"]
[477620,"477620","47.76.20","Planteforhandlere og havecentre"]
[477630,"477630","47.76.30","Dyrehandel"]
[477700,"477700","47.77.00","Detailhandel med ure, smykker og guld- og sølvvarer"]
[477810,"477810","47.78.10","Optikere"]
[477820,"477820","47.78.20","Fotoforretninger"]
[477830,"477830","47.78.30","Forhandlere af gaveartikler og brugskunst"]
[477840,"477840","47.78.40","Kunsthandel og gallerivirksomhed"]
[477890,"477890","47.78.90","Detailhandel med andre varer i.a.n."]
[477900,"477900","47.79.00","Detailhandel med brugte varer i forretninger"]
[478100,"478100","47.81.00","Detailhandel med føde-, drikke- og tobaksvarer fra stadepladser og markeder"]
[478200,"478200","47.82.00","Detailhandel med tekstiler, beklædningsartikler og fodtøj fra stadepladser og markeder"]
[478900,"478900","47.89.00","Detailhandel med andre varer fra stadepladser og markeder"]
[479110,"479110","47.91.10","Detailhandel fra postordreforretninger"]
[479111,"479111","47.91.11","Detailhandel med dagligvarer via internet"]
[479112,"479112","47.91.12","Detailhandel med elektroniske eller elektriske apparater samt fotoudstyr via internet"]
[479113,"479113","47.91.13","Detailhandel med husholdnings- eller boligudstyr, bortset fra elektriske apparater, via internet"]
[479114,"479114","47.91.14","Detailhandel med bøger, kontorartikler, musik eller film via internet"]
[479115,"479115","47.91.15","Detailhandel med hobbyartikler, musikinstrumenter, sportsudstyr, legetøj, cykler via internet"]
[479116,"479116","47.91.16","Detailhandel med tøj, sko, lædervarer, ure eller babyudstyr  via internet"]
[479117,"479117","47.91.17","Detailhandel med medicin og produkter til personlig pleje via internet"]
[479119,"479119","47.91.19","Detailhandel med andre varer i.a.n. via internet"]
[479120,"479120","47.91.20","Detailhandel via Internettet med digitale produkter"]
[479900,"479900","47.99.00","Anden detailhandel undtagen fra forretninger, stadepladser og markeder"]
[491000,"491000","49.10.00","Passagertransport med regional- eller fjerntog"]
[492000,"492000","49.20.00","Godstransport med tog"]
[493110,"493110","49.31.10","Rutebuskørsel, by- og nærtrafik"]
[493120,"493120","49.31.20","S-togstrafik, metro og andre nærbaner"]
[493200,"493200","49.32.00","Taxikørsel"]
[493910,"493910","49.39.10","Rutebuskørsel, fjerntrafik og skolebusser"]
[493920,"493920","49.39.20","Turistkørsel og anden landpassagertransport"]
[494100,"494100","49.41.00","Vejgodstransport"]
[494200,"494200","49.42.00","Flytteforretninger"]
[495000,"495000","49.50.00","Rørtransport"]
[501000,"501000","50.10.00","Sø- og kysttransport af passagerer"]
[502000,"502000","50.20.00","Sø- og kysttransport af gods"]
[503000,"503000","50.30.00","Transport af passagerer ad indre vandveje"]
[504000,"504000","50.40.00","Transport af gods ad indre vandveje"]
[511010,"511010","51.10.10","Ruteflyvning"]
[511020,"511020","51.10.20","Charter- og taxiflyvning"]
[512100,"512100","51.21.00","Lufttransport af gods"]
[512200,"512200","51.22.00","Rumfart"]
[521000,"521000","52.10.00","Oplagrings- og pakhusvirksomhed"]
[522110,"522110","52.21.10","Stationer, godsterminaler mv."]
[522120,"522120","52.21.20","Parkering og vejhjælp mv."]
[522130,"522130","52.21.30","Drift af betalingsveje, -broer og -tunneler"]
[522210,"522210","52.22.10","Erhvervshavne"]
[522220,"522220","52.22.20","Bugserings-, bjærgnings- og redningsvæsen mv."]
[522300,"522300","52.23.00","Serviceydelser i forbindelse med luftfart"]
[522400,"522400","52.24.00","Godshåndtering"]
[522910,"522910","52.29.10","Skibsmæglere"]
[522920,"522920","52.29.20","Speditører"]
[522990,"522990","52.29.90","Andre tjenesteydelser i forbindelse med transport"]
[531000,"531000","53.10.00","Posttjenester omfattet af forsyningspligten"]
[532000,"532000","53.20.00","Andre post- og kurertjenester"]
[551010,"551010","55.10.10","Hoteller"]
[551020,"551020","55.10.20","Konferencecentre og kursusejendomme"]
[552000,"552000","55.20.00","Ferieboliger og andre indlogeringsfaciliteter til kortvarige ophold"]
[553000,"553000","55.30.00","Campingpladser"]
[559000,"559000","55.90.00","Andre overnatningsfaciliteter"]
[561010,"561010","56.10.10","Restauranter"]
[561020,{"$f":"LEFT(C514,2) & LEFT(RIGHT(C514,5),2) & RIGHT(C514,2)","v":"561020"},"56.10.20","Pizzeriaer, grillbarer, isbarer mv."]
[562100,"562100","56.21.00","Event catering"]
[562900,"562900","56.29.00","Anden restaurationsvirksomhed"]
[563000,"563000","56.30.00","Cafeér, værtshuse, diskoteker mv."]
[581100,"581100","58.11.00","Udgivelse af bøger"]
[581200,"581200","58.12.00","Udgivelse af telefonbøger og adresselister"]
[581300,"581300","58.13.00","Udgivelse af aviser og dagblade"]
[581410,"581410","58.14.10","Udgivelse af ugeblade og magasiner"]
[581420,"581420","58.14.20","Udgivelse af distrikts- og annonceblade"]
[581900,"581900","58.19.00","Anden udgivervirksomhed"]
[582100,"582100","58.21.00","Udgivelse af computerspil"]
[582900,"582900","58.29.00","Anden udgivelse af software"]
[591110,"591110","59.11.10","Produktion af film og videofilm"]
[591120,"591120","59.11.20","Produktion af tv-programmer"]
[591200,"591200","59.12.00","Aktiviteter, der udøves efter produktion af film, video- og tv-programmer"]
[591300,"591300","59.13.00","Distribution af film, video- og tv-programmer"]
[591400,"591400","59.14.00","Biografer"]
[592000,"592000","59.20.00","Indspilning af lydoptagelser og udgivelse af musik"]
[601000,"601000","60.10.00","Radiovirksomhed"]
[602000,"602000","60.20.00","Tv-virksomhed"]
[611000,"611000","61.10.00","Fastnetbaseret telekommunikation"]
[612000,"612000","61.20.00","Trådløs telekommunikation"]
[613000,"613000","61.30.00","Satellitbaseret telekommunikation"]
[619000,"619000","61.90.00","Anden telekommunikation"]
[620100,"620100","62.01.00","Computerprogrammering"]
[620200,"620200","62.02.00","Konsulentbistand vedrørende informationsteknologi"]
[620300,"620300","62.03.00","Computer facility management"]
[620900,"620900","62.09.00","Anden it-servicevirksomhed"]
[631100,"631100","63.11.00","Databehandling, webhosting og lignende serviceydelser"]
[631200,"631200","63.12.00","Webportaler"]
[639100,"639100","63.91.00","Pressebureauer"]
[639900,"639900","63.99.00","Andre informationstjenester i.a.n."]
[641100,"641100","64.11.00","Centralbanker"]
[641900,"641900","64.19.00","Banker, sparekasser og andelskasser"]
[642010,"642010","64.20.10","Finansielle holdingselskaber"]
[642020,"642020","64.20.20","Ikke-finansielle holdingselskaber"]
[642030,"642030","64.20.30","Gennemløbsholdingselskaber"]
[643010,"643010","64.30.10","Investeringsforeninger"]
[643020,"643020","64.30.20","Pengemarkedsforeninger"]
[643030,"643030","64.30.30","Investeringsselskaber"]
[643040,"643040","64.30.40","Ventureselskaber og kapitalfonde"]
[649100,"649100","64.91.00","Finansiel leasing"]
[649210,"649210","64.92.10","Realkreditinstitutter"]
[649220,"649220","64.92.20","Andre kreditinstitutter"]
[649230,"649230","64.92.30","Andre kreditselskaber"]
[649240,"649240","64.92.40","FVC-selskaber"]
[649900,"649900","64.99.00","Anden finansiel formidling undtagen forsikring og pensionsforsikring, i.a.n."]
[651100,"651100","65.11.00","Livsforsikring"]
[651200,"651200","65.12.00","Anden forsikring"]
[652000,"652000","65.20.00","Genforsikring"]
[653010,"653010","65.30.10","Pensionskasser"]
[653020,"653020","65.30.20","Anden pensionsforsikring"]
[661100,"661100","66.11.00","Forvaltning af kapitalmarkeder"]
[661200,"661200","66.12.00","Værdipapir- og varemægling"]
[661900,"661900","66.19.00","Andre hjælpetjenester i forbindelse med finansiel formidling"]
[662100,"662100","66.21.00","Risiko- og skadesvurdering"]
[662200,"662200","66.22.00","Forsikringsagenters og forsikringsmægleres virksomhed"]
[662900,"662900","66.29.00","Andre hjælpetjenester i forbindelse med forsikring og pensionsforsikring"]
[663000,"663000","66.30.00","Formueforvaltning"]
[681000,"681000","68.10.00","Køb og salg af egen fast ejendom"]
[682010,"682010","68.20.10","Almennyttige boligselskaber"]
[682020,"682020","68.20.20","Private andelsboligforeninger"]
[682030,"682030","68.20.30","Anden udlejning af boliger"]
[682040,"682040","68.20.40","Udlejning af erhvervsejendomme"]
[683110,{"$f":"LEFT(C578,2) & LEFT(RIGHT(C578,5),2) & RIGHT(C578,2)","v":"683110"},"68.31.10","Ejendomsmæglere mv."]
[683120,"683120","68.31.20","Boliganvisning, ferieboligudlejning mv."]
[683210,"683210","68.32.10","Administration af fast ejendom på kontraktbasis"]
[683220,"683220","68.32.20","Ejerforeninger"]
[691000,"691000","69.10.00","Juridisk bistand"]
[692000,"692000","69.20.00","Bogføring og revision; skatterådgivning"]
[701010,"701010","70.10.10","Ikke-finansielle hovedsæders virksomhed"]
[701020,"701020","70.10.20","Finansielle hovedsæders virksomhed"]
[702100,"702100","70.21.00","Public relations og kommunikation"]
[702200,"702200","70.22.00","Virksomhedsrådgivning og anden rådgivning om driftsledelse"]
[711100,"711100","71.11.00","Arkitektvirksomhed"]
[711210,"711210","71.12.10","Rådgivende ingeniørvirksomhed inden for byggeri og anlægsarbejder"]
[711220,"711220","71.12.20","Rådgivende ingeniørvirksomhed inden for produktions- og maskinteknik"]
[711230,"711230","71.12.30","Opstilling og levering af færdige fabriksanlæg"]
[711240,"711240","71.12.40","Geologiske undersøgelser og prospektering, landinspektører mv."]
[711290,"711290","71.12.90","Anden teknisk rådgivning"]
[712010,"712010","71.20.10","Kontrol af levnedsmidler"]
[712020,"712020","71.20.20","Teknisk afprøvning og kontrol"]
[712090,"712090","71.20.90","Anden måling og teknisk analyse"]
[721100,"721100","72.11.00","Forskning og eksperimentel udvikling indenfor bioteknologi"]
[721900,"721900","72.19.00","Anden forskning og eksperimentel udvikling inden for naturvidenskab og teknik"]
[722000,"722000","72.20.00","Forskning og eksperimentel udvikling inden for samfundsvidenskab og humanistiske videnskaber"]
[731110,"731110","73.11.10","Reklamebureauer"]
[731190,"731190","73.11.90","Anden reklamevirksomhed"]
[731200,"731200","73.12.00","Reklameplads i medier"]
[732000,"732000","73.20.00","Markedsanalyse og offentlig meningsmåling"]
[741010,"741010","74.10.10","Industriel design og produktdesign"]
[741020,"741020","74.10.20","Kommunikationsdesign og grafisk design"]
[741030,"741030","74.10.30","Indretningsarkitekter og rumdesign"]
[742000,"742000","74.20.00","Fotografisk virksomhed"]
[743000,"743000","74.30.00","Oversættelse og tolkning"]
[749010,"749010","74.90.10","Landbrugskonsulenter"]
[749090,"749090","74.90.90","Andre liberale, videnskabelige og tekniske tjenesteydelser i.a.n."]
[750000,"750000","75.00.00","Dyrlæger"]
[771100,"771100","77.11.00","Udlejning og leasing af biler og lette motorkøretøjer"]
[771200,"771200","77.12.00","Udlejning og leasing af lastbiler"]
[772100,"772100","77.21.00","Udlejning og leasing af varer til fritid og sport"]
[772200,"772200","77.22.00","Udlejning af videobånd og videodisks"]
[772900,"772900","77.29.00","Udlejning og leasing af andre varer til personlig brug og husholdningsbrug i.a.n."]
[773100,"773100","77.31.00","Udlejning og leasing af landbrugsmaskiner og -udstyr"]
[773200,"773200","77.32.00","Udlejning og leasing af entreprenørmateriel"]
[773300,"773300","77.33.00","Udlejning af kontormaskiner og -udstyr, computere og it-udstyr"]
[773400,"773400","77.34.00","Udlejning og leasing af skibe og både"]
[773500,"773500","77.35.00","Udlejning og leasing af luftfartøjer"]
[773900,"773900","77.39.00","Udlejning og leasing af andet materiel, udstyr og andre materielle aktiver i.a.n.”"]
[774000,"774000","77.40.00","Leasing af intellektuelle ejendomsrettigheder og lignende, dog ikke ophavsretsbeskyttede værker"]
[781000,"781000","78.10.00","Arbejdsformidlingskontorer"]
[782000,"782000","78.20.00","Vikarbureauer"]
[783000,"783000","78.30.00","Anden personaleformidling"]
[791100,"791100","79.11.00","Rejsebureauer"]
[791200,"791200","79.12.00","Rejsearrangører"]
[799000,"799000","79.90.00","Andre reservationstjenesteydelser og tjenesteydelser i forbindelse hermed"]
[801000,"801000","80.10.00","Private vagt- og sikkerhedstjenester"]
[802000,"802000","80.20.00","Serviceydelser i forbindelse med sikkerhedssystemer"]
[803000,"803000","80.30.00","Overvågning"]
[811000,"811000","81.10.00","Kombinerede serviceydelser"]
[812100,"812100","81.21.00","Almindelig rengøring i bygninger"]
[812210,"812210","81.22.10","Vinduespolering"]
[812220,"812220","81.22.20","Skorstensfejning"]
[812290,"812290","81.22.90","Anden rengøring af bygninger og rengøring af erhvervslokaler"]
[812900,"812900","81.29.00","Andre rengøringsydelser"]
[813000,"813000","81.30.00","Landskabspleje"]
[821100,"821100","82.11.00","Kombinerede administrationsserviceydelser"]
[821900,"821900","82.19.00","Fotokopiering, dokumentbehandling og anden specialiseret kontorservice"]
[822000,{"$f":"LEFT(C642,2) & LEFT(RIGHT(C642,5),2) & RIGHT(C642,2)","v":"822000"},"82.20.00","Call centres virksomhed"]
[823000,"823000","82.30.00","Organisering af kongresser, messer og udstillinger"]
[829100,"829100","82.91.00","Inkassovirksomhed og kreditoplysning"]
[829200,"829200","82.92.00","Pakkerier"]
[829900,"829900","82.99.00","Anden forretningsservice i.a.n."]
[841100,"841100","84.11.00","Generelle offentlige tjenester"]
[841200,"841200","84.12.00","Administration af sundhedsvæsen, undervisning, kultur og sociale forhold undtagen social sikring"]
[841300,"841300","84.13.00","Administration af og bidrag til erhvervsfremme"]
[842100,"842100","84.21.00","Udenrigsanliggender"]
[842200,"842200","84.22.00","Forsvar"]
[842300,"842300","84.23.00","Domstole og fængselsvæsen"]
[842400,"842400","84.24.00","Politi"]
[842500,"842500","84.25.00","Brandvæsen"]
[843000,"843000","84.30.00","Lovpligtig socialsikring mv."]
[851000,"851000","85.10.00","Førskoleundervisning"]
[852010,"852010","85.20.10","Folkeskoler o.lign."]
[852020,"852020","85.20.20","Specialskoler for handicappede"]
[853110,"853110","85.31.10","Ungdoms- og efterskoler"]
[853120,"853120","85.31.20","Gymnasier, studenter- og HF-kurser"]
[853200,"853200","85.32.00","Tekniske skoler og fagskoler"]
[854100,"854100","85.41.00","Videregående uddannelser ikke på universitetsniveau"]
[854200,"854200","85.42.00","Videregående uddannelser på universitetsniveau"]
[855100,"855100","85.51.00","Undervisning inden for sport og fritid"]
[855200,"855200","85.52.00","Undervisning i kulturelle discipliner"]
[855300,"855300","85.53.00","Køreskoler"]
[855900,"855900","85.59.00","Anden undervisning i.a.n."]
[856000,"856000","85.60.00","Hjælpeydelser i forbindelse med undervisning"]
[861000,"861000","86.10.00","Hospitaler"]
[862100,"862100","86.21.00","Alment praktiserende læger"]
[862200,"862200","86.22.00","Praktiserende speciallæger"]
[862300,"862300","86.23.00","Praktiserende tandlæger"]
[869010,"869010","86.90.10","Sundhedspleje, hjemmesygepleje og jordemødre mv."]
[869020,"869020","86.90.20","Fysio- og ergoterapeuter"]
[869030,"869030","86.90.30","Psykologisk rådgivning"]
[869040,"869040","86.90.40","Kiropraktorer"]
[869090,"869090","86.90.90","Sundhedsvæsen i øvrigt i.a.n."]
[871010,"871010","87.10.10","Plejehjem"]
[871020,"871020","87.10.20","Institutionsophold med sygepleje i.a.n."]
[872010,"872010","87.20.10","Døgninstitutioner for personer med psykiske handicap"]
[872020,"872020","87.20.20","Behandlingshjem for stofmisbrugere og alkoholskadede"]
[873010,"873010","87.30.10","Døgninstitutioner for personer med fysisk handicap"]
[873020,"873020","87.30.20","Beskyttede boliger o.l."]
[879010,"879010","87.90.10","Døgninstitutioner for børn og unge"]
[879020,"879020","87.90.20","Familiepleje"]
[879090,"879090","87.90.90","Andre former for institutionsophold"]
[881010,"881010","88.10.10","Hjemmehjælp"]
[881020,"881020","88.10.20","Dagcentre mv."]
[881030,"881030","88.10.30","Revalideringsinstitutioner"]
[889110,"889110","88.91.10","Dagplejemødre"]
[889120,"889120","88.91.20","Vuggestuer"]
[889130,"889130","88.91.30","Børnehaver"]
[889140,"889140","88.91.40","Skolefritidsordninger og fritidshjem"]
[889150,"889150","88.91.50","Aldersintegrerede institutioner"]
[889160,"889160","88.91.60","Fritids- og ungdomsklubber"]
[889910,"889910","88.99.10","Foreninger, legater og fonde med sygdomsbekæmpende, sociale og velgørende formål"]
[889920,"889920","88.99.20","Flygtninge- og asylcentre"]
[889990,"889990","88.99.90","Andre sociale foranstaltninger uden institutionsophold i.a.n."]
[900110,"900110","90.01.10","Teater- og koncertvirksomhed"]
[900120,"900120","90.01.20","Selvstændigt udøvende scenekunstnere"]
[900200,"900200","90.02.00","Hjælpeaktiviteter i forbindelse med scenekunst"]
[900300,"900300","90.03.00","Kunstnerisk skaben"]
[900400,"900400","90.04.00","Drift af teater- og koncertsale, kulturhuse mv."]
[910110,"910110","91.01.10","Biblioteker"]
[910120,"910120","91.01.20","Arkiver"]
[910200,{"$f":"LEFT(C706,2) & LEFT(RIGHT(C706,5),2) & RIGHT(C706,2)","v":"910200"},"91.02.00","Museer"]
[910300,"910300","91.03.00","Historiske monumenter og bygninger og lignende attraktioner"]
[910400,"910400","91.04.00","Botaniske og zoologiske haver samt naturreservater"]
[920000,"920000","92.00.00","Lotteri- og anden spillevirksomhed"]
[931100,"931100","93.11.00","Drift af sportsanlæg"]
[931200,"931200","93.12.00","Sportsklubber"]
[931300,"931300","93.13.00","Fitnesscentre"]
[931900,"931900","93.19.00","Andre sportsaktiviteter"]
[932100,"932100","93.21.00","Forlystelsesparker o.l."]
[932910,"932910","93.29.10","Lystbådehavne"]
[932990,"932990","93.29.90","Andre forlystelser og fritidsaktiviteter"]
[941100,"941100","94.11.00","Erhvervs- og arbejdsgiverorganisationer"]
[941200,"941200","94.12.00","Faglige sammenslutninger"]
[942000,"942000","94.20.00","Fagforeninger"]
[949100,"949100","94.91.00","Religiøse institutioner og foreninger"]
[949200,"949200","94.92.00","Politiske partier"]
[949900,"949900","94.99.00","Andre organisationer og foreninger i.a.n."]
[951100,"951100","95.11.00","Reparation af computere og ydre enheder"]
[951200,"951200","95.12.00","Reparation af kommunikationsudstyr"]
[952100,"952100","95.21.00","Reparation af forbrugerelektronik"]
[952200,"952200","95.22.00","Reparation af husholdningsapparater og redskaber til hus og have"]
[952300,"952300","95.23.00","Reparation af skotøj og lædervarer"]
[952400,"952400","95.24.00","Reparation af møbler og boligudstyr"]
[952500,"952500","95.25.00","Reparation af ure, smykker og guld- og sølvvarer"]
[952900,"952900","95.29.00","Reparation af andre varer til personligt brug og husholdningsbrug"]
[960110,"960110","96.01.10","Erhvervs- og institutionsvaskerier"]
[960120,"960120","96.01.20","Renserier, selvbetjeningsvaskerier mv."]
[960210,"960210","96.02.10","Frisørsaloner"]
[960220,"960220","96.02.20","Skønheds- og hudpleje"]
[960300,"960300","96.03.00","Bedemænd og begravelsesvæsen"]
[960400,"960400","96.04.00","Aktiviteter vedrørende fysisk velvære"]
[960900,"960900","96.09.00","Andre personlige serviceydelser i.a.n."]
[970000,"970000","97.00.00","Husholdninger med ansat medhjælp"]
[981000,"981000","98.10.00","Private husholdningers produktion af varer til eget brug, i.a.n."]
[982000,"982000","98.20.00","Private husholdningers produktion af tjenesteydelser til eget brug, i.a.n."]
[990000,"990000","99.00.00","Ekstraterritoriale organisationer og organer"]
[999999,"999999","99.99.99","Uoplyst"]